bitfinex-derivatives/quotes_BTCF0:USTF0_20251230
["timestamp","ask_amount","ask_price","bid_price","bid_amount"]
[1767087232735,0.02646009,87809.0,87798.0,0.05712]
[1767087232935,0.0114027,87811.0,87798.0,0.05712]
[1767087233242,0.02646005,87810.0,87798.0,0.05712]
[1767087233444,0.02646005,87809.0,87798.0,0.05712]
[1767087233743,0.02646005,87808.0,87798.0,0.05712]
[1767087233943,0.0114027,87811.0,87798.0,0.05712]
[1767087240045,0.011403,87808.0,87795.0,0.09692]
[1767087240245,0.011403,87808.0,87793.0,0.05712]
[1767087240445,0.011404,87801.0,87781.0,0.0114065]
[1767087240749,0.011404,87801.0,87782.0,0.05712]
[1767087241256,0.011404,87801.0,87783.0,0.00017086]
[1767087241653,0.0114035,87805.0,87783.0,0.00017086]
[1767087243446,0.0114038,87802.0,87783.0,0.00017086]
[1767087243953,0.15404,87812.0,87783.0,0.00017086]
[1767087244140,0.15442223,87800.0,87766.0,0.09692]
[1767087244343,0.0114065,87782.0,87767.0,0.05712]
[1767087245048,0.00017086,87783.0,87767.0,0.05712]
[1767087245553,0.01157716,87783.0,87766.0,0.00017086]
[1767087245751,0.0114068,87780.0,87766.0,0.00017086]
[1767087246146,0.0114066,87781.0,87736.0,0.18482145]
[1767087246346,0.0114081,87769.0,87743.0,0.0114114]
[1767087246548,0.0114081,87769.0,87744.0,0.15404]
[1767087246955,0.0114081,87769.0,87745.0,0.11393025]
[1767087247154,0.00017086,87766.0,87748.0,0.00017086]
[1767087247957,0.01157946,87766.0,87748.0,0.00017086]
[1767087250846,0.01157946,87766.0,87748.0,8.6e-07]
[1767087251966,0.00017086,87766.0,87748.0,8.6e-07]
[1767087254156,0.00017086,87766.0,87749.0,0.0114106]
[1767087254355,0.09692,87767.0,87749.0,0.0114106]
[1767087254555,0.09692,87767.0,87750.0,0.15453491]
[1767087255360,0.09709086,87767.0,87750.0,0.15453491]
[1767087255948,0.21165491,87770.0,87751.0,0.0114104]
[1767087256153,0.15404,87773.0,87751.0,0.0114104]
[1767087257057,0.00017086,87771.0,87752.0,0.05712]
[1767087257949,0.00017086,87771.0,87753.0,0.01141]
[1767087261364,0.00017086,87771.0,87756.0,0.0114097]
[1767087263870,0.00017086,87771.0,87760.0,0.15453491]
[1767087264174,0.00017086,87771.0,87755.0,0.0114099]
[1767087266870,0.00017086,87771.0,87760.0,0.15453491]
[1767087267871,0.05712,87774.0,87760.0,0.15453491]
[1767087272274,0.05712,87774.0,87758.0,0.0114095]
[1767087272473,0.05712,87774.0,87760.0,0.15453491]
[1767087273374,0.02639673,87773.0,87760.0,0.15453491]
[1767087273570,0.05712,87774.0,87760.0,0.15453491]
[1767087273770,0.02639673,87773.0,87758.0,0.0114095]
[1767087273970,0.05712,87774.0,87761.0,0.0114091]
[1767087274776,0.00017086,87776.0,87761.0,0.0114091]
[1767087275075,0.05712,87780.0,87766.0,0.15453491]
[1767087275370,0.05712,87780.0,87761.0,0.011409]
[1767087276075,0.00017086,87779.0,87762.0,0.00017086]
[1767087278680,0.011403,87809.0,87762.0,0.00017086]
[1767087278872,0.18050349,87801.0,87770.0,0.15453491]
[1767087279073,0.0114059,87786.0,87770.0,0.15453491]
[1767087279374,0.08354349,87785.0,87763.0,0.0114088]
[1767087279577,0.08354349,87785.0,87770.0,0.15453491]
[1767087279578,0.05712,87785.0,87770.0,0.15453491]
[1767087281575,0.0114059,87786.0,87770.0,0.15453491]
[1767087281773,1.01,97300.0,87784.0,0.0114061]
[1767087281774,0.08179269,87816.0,87784.0,0.0114061]
[1767087281979,0.0114034,87806.0,87791.0,0.00017086]
[1767087282180,0.18049605,87805.0,87791.0,0.00017086]
[1767087282376,0.0114037,87803.0,87791.0,6e-08]
[1767087282585,0.09696,87802.0,87791.0,6e-08]
[1767087282976,0.0114039,87801.0,87791.0,6e-08]
[1767087287983,0.09696,87802.0,87791.0,6e-08]
[1767087288187,0.15453491,87801.0,87791.0,6e-08]
[1767087289184,0.0114044,87798.0,87791.0,6e-08]
[1767087289388,0.05712,87797.0,87791.0,6e-08]
[1767087290989,0.05712,87797.0,87770.0,0.15453491]
[1767087290990,0.0114057,87788.0,87770.0,0.15453491]
[1767087291188,0.15404,87787.0,87770.0,0.15453491]
[1767087291881,0.0114059,87786.0,87770.0,0.00017086]
[1767087292087,0.0114063,87783.0,87770.0,0.00017086]
[1767087292288,0.0114063,87783.0,87770.0,0.15470577]
[1767087293284,0.16561666,87787.0,87770.0,0.15470577]
[1767087298392,0.15421086,87787.0,87770.0,0.15470577]
[1767087301299,0.15421086,87787.0,87771.0,0.0114078]
[1767087302095,0.09692,87793.0,87781.0,0.0114064]
[1767087302289,0.05712,87792.0,87781.0,0.0114064]
[1767087302495,0.05712,87791.0,87781.0,0.0114064]
[1767087302694,0.05712,87790.0,87781.0,0.0114064]
[1767087303492,0.05712,87790.0,87780.0,0.15453491]
[1767087303698,0.05712,87790.0,87775.0,0.0114073]
[1767087304886,0.21165491,87790.0,87774.0,0.05712]
[1767087305086,0.05712,87790.0,87774.0,0.05712]
[1767087307204,0.21165491,87790.0,87770.0,0.00017086]
[1767087307393,0.21165491,87790.0,87770.0,0.15470577]
[1767087308295,0.011406,87786.0,87770.0,0.15470577]
[1767087308498,0.09692,87785.0,87770.0,0.15470577]
[1767087308801,0.15404,87784.0,87770.0,0.15470577]
[1767087308995,0.05712,87783.0,87770.0,0.15470577]
[1767087309199,0.05712,87782.0,87770.0,0.15470577]
[1767087309396,0.15404,87782.0,87770.0,0.15470577]
[1767087309596,0.05712,87781.0,87770.0,0.00017086]
[1767087310902,0.15404,87780.0,87770.0,0.00017086]
[1767087311092,0.011406,87786.0,87770.0,0.00017086]
[1767087311295,0.15404,87785.0,87770.0,0.00017086]
[1767087316605,0.15404,87785.0,87770.0,0.01157876]
[1767087317500,0.0114052,87792.0,87770.0,0.01157876]
[1767087317694,0.02640522,87791.0,87775.0,0.0114073]
[1767087317900,0.15404,87790.0,87778.0,0.0114068]
[1767087318100,0.0114036,87804.0,87778.0,0.0114068]
[1767087318301,0.02640905,87803.0,87782.0,0.00017086]
[1767087318602,0.18044905,87802.0,87782.0,0.00017086]
[1767087318903,0.02640905,87801.0,87782.0,0.00017086]
[1767087319301,0.15404,87800.0,87782.0,0.00017086]
[1767087319517,0.02640905,87799.0,87782.0,0.00017086]
[1767087319701,0.15404,87798.0,87782.0,0.00017086]
[1767087319900,0.02640905,87797.0,87782.0,0.00017086]
[1767087321602,0.05712,87796.0,87782.0,0.01157716]
[1767087321805,0.15404,87796.0,87782.0,0.01157716]
[1767087322005,0.0114036,87804.0,87782.0,0.01157716]
[1767087322006,0.15404,87795.0,87782.0,0.01157716]
[1767087324513,0.00227745,87818.0,87782.0,0.00017086]
[1767087324814,0.02641836,87817.0,87796.0,0.0114045]
[1767087325006,0.18045836,87816.0,87796.0,0.0114045]
[1767087325206,0.02641836,87815.0,87796.0,0.0114045]
[1767087325915,0.02641836,87815.0,87800.0,0.011404]
[1767087326109,0.00227745,87818.0,87800.0,0.011404]
[1767087326110,0.15404,87814.0,87800.0,0.011404]
[1767087328714,0.00227745,87818.0,87800.0,0.011404]
[1767087328916,0.0114004,87829.0,87805.0,0.0114034]
[1767087329115,0.0114006,87827.0,87808.0,0.00017086]
[1767087329316,0.0114008,87825.0,87808.0,0.00017086]
[1767087329517,0.0114013,87822.0,87808.0,0.00017086]
[1767087329720,0.05712,87821.0,87808.0,0.00017086]
[1767087332222,0.05712,87820.0,87808.0,0.00017086]
[1767087333718,0.0114009,87825.0,87808.0,0.00017086]
[1767087333919,0.15404,87824.0,87799.0,0.0114041]
[1767087334323,0.15404,87824.0,87802.0,0.0114037]
[1767087335022,0.00017086,87822.0,87804.0,0.00017086]
[1767087336021,0.00017086,87822.0,87805.0,0.0114034]
[1767087336221,0.00017086,87822.0,87808.0,0.0114029]
[1767087336420,0.00017086,87822.0,87804.0,0.01157436]
[1767087337126,0.05712,87821.0,87804.0,0.01157436]
[1767087337523,0.0114002,87830.0,87804.0,0.01157436]
[1767087337828,0.0114009,87825.0,87804.0,0.01157436]
[1767087339229,0.09692,87826.0,87804.0,0.01157436]
[1767087340030,0.1083207,87826.0,87804.0,0.01157436]
[1767087340919,0.1083207,87826.0,87804.0,0.00017086]
[1767087341228,0.0114012,87823.0,87804.0,0.00017086]
[1767087341430,0.05712,87822.0,87804.0,0.00017086]
[1767087348421,0.0113989,87841.0,87810.0,0.15447933]
[1767087348722,0.0113989,87841.0,87804.0,0.00017086]
[1767087348723,0.02638454,87840.0,87806.0,0.05712]
[1767087348932,0.0114006,87827.0,87807.0,0.09692]
[1767087349425,0.0113506,87827.0,87807.0,0.09692]
[1767087350028,0.05712,87833.0,87807.0,0.09692]
[1767087350423,0.02639203,87832.0,87804.0,0.00017086]
[1767087350730,0.05712,87833.0,87808.0,0.05712]
[1767087350924,0.02639207,87832.0,87808.0,0.05712]
[1767087351122,0.05712,87833.0,87808.0,0.05712]
[1767087351322,0.02639905,87832.0,87808.0,0.05712]
[1767087351527,0.05712,87833.0,87808.0,0.05712]
[1767087351732,0.02639893,87832.0,87808.0,0.05712]
[1767087351922,0.05712,87833.0,87808.0,0.05712]
[1767087352226,0.0263994,87832.0,87808.0,0.05712]
[1767087352426,0.05712,87833.0,87808.0,0.05712]
[1767087352427,0.0114007,87827.0,87808.0,0.05712]
[1767087354132,0.05712,87833.0,87808.0,0.05712]
[1767087354133,0.011401,87824.0,87808.0,0.05712]
[1767087357732,0.0114004,87829.0,87808.0,0.05712]
[1767087358034,0.02643935,87828.0,87808.0,0.05712]
[1767087358334,0.0114004,87829.0,87808.0,0.05712]
[1767087358535,0.02644115,87828.0,87808.0,0.05712]
[1767087358838,0.0114004,87829.0,87808.0,0.05712]
[1767087359134,0.02644114,87828.0,87808.0,0.05712]
[1767087359434,0.0114004,87829.0,87808.0,0.05712]
[1767087359628,0.02644104,87828.0,87808.0,0.05712]
[1767087359826,0.0114004,87829.0,87805.0,0.0114033]
[1767087360035,0.02644104,87828.0,87806.0,0.15396]
[1767087360224,0.0114004,87829.0,87806.0,0.15396]
[1767087360426,0.02644093,87828.0,87807.0,0.0114031]
[1767087360630,0.0114004,87829.0,87807.0,0.0114031]
[1767087360925,0.02644096,87828.0,87807.0,0.0114031]
[1767087361130,0.0114004,87829.0,87807.0,0.0114031]
[1767087361331,0.02644084,87828.0,87807.0,0.0114031]
[1767087361531,0.0114004,87829.0,87807.0,0.0114031]
[1767087361832,0.02644083,87828.0,87807.0,0.0114031]
[1767087362034,0.0114002,87830.0,87807.0,0.0114031]
[1767087362233,0.02643945,87829.0,87807.0,0.0114031]
[1767087362433,0.02643945,87828.0,87807.0,0.0114031]
[1767087362634,0.0114002,87830.0,87807.0,0.0114031]
[1767087362833,0.02643942,87829.0,87807.0,0.0114031]
[1767087363034,0.02643942,87828.0,87807.0,0.0114031]
[1767087363233,0.0114002,87830.0,87807.0,0.0114031]
[1767087363534,0.02643941,87829.0,87807.0,0.0114031]
[1767087363733,0.02643941,87828.0,87807.0,0.0114031]
[1767087363935,0.0114002,87830.0,87807.0,0.0114031]
[1767087364136,0.02643951,87829.0,87807.0,0.0114031]
[1767087364333,0.0114002,87830.0,87807.0,0.0114031]
[1767087364334,0.02643951,87828.0,87807.0,0.0114031]
[1767087364523,0.02643951,87827.0,87807.0,0.0114031]
[1767087364727,0.02643951,87826.0,87807.0,0.0114031]
[1767087365021,0.02643951,87825.0,87804.0,0.00017086]
[1767087365228,0.03784051,87824.0,87805.0,0.15396]
[1767087365430,0.02643951,87823.0,87805.0,0.15396]
[1767087366242,0.02643951,87823.0,87804.0,0.00017086]
[1767087366541,0.02643951,87823.0,87805.0,0.05708]
[1767087366741,0.02643951,87823.0,87804.0,0.00017086]
[1767087366941,0.02643951,87823.0,87805.0,0.15396]
[1767087368544,0.02643951,87823.0,87804.0,0.00017086]
[1767087368745,0.02643951,87823.0,87805.0,0.15396]
[1767087368950,0.0114019,87817.0,87792.0,0.011405]
[1767087369140,0.0114029,87809.0,87798.0,0.09688]
[1767087369444,0.0114029,87809.0,87795.0,0.09688]
[1767087370032,0.0114029,87809.0,87794.0,0.05708]
[1767087370438,0.00017086,87811.0,87794.0,0.05708]
[1767087370638,0.02638808,87810.0,87794.0,0.05708]
[1767087370838,0.02638808,87809.0,87794.0,0.05708]
[1767087371046,0.00017086,87811.0,87794.0,0.05708]
[1767087371346,0.0263881,87810.0,87794.0,0.05708]
[1767087371550,0.0263881,87809.0,87794.0,0.0684848]
[1767087371748,0.00017086,87811.0,87794.0,0.05708]
[1767087372057,0.09688,87817.0,87803.0,0.0114037]
[1767087372348,0.05708,87820.0,87803.0,0.0114037]
[1767087372838,0.09688,87822.0,87803.0,0.0114037]
[1767087374041,0.09688,87822.0,87799.0,0.0114042]
[1767087375246,0.09688,87822.0,87802.0,0.0114037]
[1767087376548,0.15436226,87820.0,87802.0,0.0114037]
[1767087376851,0.09688,87822.0,87802.0,0.0114037]
[1767087379956,0.0114013,87821.0,87800.0,0.15436226]
[1767087380254,0.15436226,87820.0,87797.0,0.0114043]
[1767087380451,0.011402,87816.0,87794.0,0.05708]
[1767087380647,0.15436226,87810.0,87795.0,0.154]
[1767087380952,0.011402,87817.0,87795.0,0.154]
[1767087382358,0.0114023,87814.0,87795.0,0.154]
[1767087384056,0.05708,87818.0,87795.0,0.154]
[1767087384257,0.15436226,87810.0,87795.0,0.154]
[1767087384761,0.05708,87818.0,87795.0,0.154]
[1767087384946,0.15436226,87810.0,87795.0,0.154]
[1767087385855,0.0114039,87802.0,87793.0,0.00017086]
[1767087386041,0.0114042,87799.0,87785.0,0.09692]
[1767087386246,0.0114042,87799.0,87783.0,0.05708]
[1767087386442,0.0114042,87799.0,87781.0,0.05708]
[1767087387156,0.01157506,87799.0,87781.0,0.05725086]
[1767087387955,0.00017086,87799.0,87781.0,0.05725086]
[1767087390457,0.0114043,87798.0,87781.0,0.05725086]
[1767087391862,0.00017086,87799.0,87781.0,0.05725086]
[1767087392362,0.01157516,87799.0,87781.0,0.05725086]
[1767087393358,0.00017086,87799.0,87781.0,0.05725086]
[1767087393861,0.09709086,87799.0,87781.0,0.05725086]
[1767087399163,0.0114043,87798.0,87781.0,0.05725086]
[1767087401165,0.09709086,87799.0,87781.0,0.05725086]
[1767087403665,0.09709086,87799.0,87782.0,0.0114064]
[1767087413267,0.09704086,87799.0,87782.0,0.0114064]
[1767087422574,0.15436226,87810.0,87782.0,0.0114064]
[1767087422774,0.18030824,87809.0,87782.0,0.0114064]
[1767087422969,0.02626824,87808.0,87782.0,0.0114064]
[1767087423580,0.18030824,87807.0,87782.0,0.0114064]
[1767087423879,0.02626824,87806.0,87782.0,0.0114064]
[1767087424378,0.0114035,87805.0,87782.0,0.0114064]
[1767087424589,0.02626824,87804.0,87782.0,0.0114064]
[1767087425782,0.02626824,87804.0,87785.0,0.0114059]
[1767087425983,0.08338824,87803.0,87790.0,0.15436226]
[1767087426276,0.02626824,87802.0,87790.0,0.15436226]
[1767087426481,0.02626824,87802.0,87791.0,0.0114052]
[1767087427082,0.05712,87803.0,87791.0,0.0114052]
[1767087429482,0.05712,87803.0,87790.0,0.15436226]
[1767087431280,0.05712,87803.0,87793.0,0.0114049]
[1767087433276,0.05712,87808.0,87790.0,0.15436226]
[1767087433479,0.02627301,87807.0,87790.0,0.15436226]
[1767087433680,0.05712,87808.0,87790.0,0.15436226]
[1767087433881,0.02627304,87807.0,87790.0,0.15436226]
[1767087434080,0.05712,87808.0,87790.0,0.15436226]
[1767087434382,0.02627199,87807.0,87790.0,0.15436226]
[1767087434682,0.05712,87808.0,87790.0,0.15436226]
[1767087434881,0.02627184,87807.0,87790.0,0.15436226]
[1767087435083,0.05712,87808.0,87790.0,0.15436226]
[1767087435278,0.02627109,87807.0,87794.0,0.0114047]
[1767087435478,0.05712,87808.0,87794.0,0.0114047]
[1767087435691,0.02627097,87807.0,87794.0,0.0114047]
[1767087435881,0.05712,87808.0,87794.0,0.0114047]
[1767087436082,0.02627091,87807.0,87794.0,0.0114047]
[1767087436285,0.05712,87808.0,87794.0,0.0114047]
[1767087436586,0.02627019,87807.0,87794.0,0.0114047]
[1767087436787,0.05712,87808.0,87794.0,0.0114047]
[1767087436988,0.02627017,87807.0,87794.0,0.0114047]
[1767087437189,0.05712,87808.0,87794.0,0.0114047]
[1767087437390,0.02626945,87807.0,87794.0,0.0114047]
[1767087437590,0.05712,87808.0,87794.0,0.0114047]
[1767087437890,0.02626948,87807.0,87794.0,0.0114047]
[1767087438088,0.05712,87808.0,87794.0,0.0114047]
[1767087438288,0.02626903,87807.0,87794.0,0.0114047]
[1767087438489,0.05712,87808.0,87794.0,0.0114047]
[1767087438789,0.02626902,87807.0,87794.0,0.0114047]
[1767087438986,0.05712,87808.0,87793.0,0.0114049]
[1767087439187,0.02626897,87807.0,87793.0,0.0114049]
[1767087439382,0.05712,87808.0,87793.0,0.0114049]
[1767087439590,0.02626854,87807.0,87793.0,0.0114049]
[1767087439882,0.05712,87808.0,87793.0,0.0114049]
[1767087440081,0.02626857,87807.0,87793.0,0.0114049]
[1767087440291,0.05712,87808.0,87793.0,0.0114049]
[1767087440490,0.02626827,87807.0,87793.0,0.0114049]
[1767087440690,0.05712,87808.0,87793.0,0.0114049]
[1767087440988,0.02626826,87807.0,87793.0,0.0114049]
[1767087441283,0.05712,87808.0,87793.0,0.0114049]
[1767087441489,0.05712,87808.0,87796.0,0.0114045]
[1767087441689,0.05712,87814.0,87790.0,0.09692]
[1767087442391,0.0114024,87813.0,87795.0,0.0114047]
[1767087444689,0.05712,87814.0,87795.0,0.0114047]
[1767087444890,0.05712,87814.0,87801.0,0.0114039]
[1767087445585,0.05712,87814.0,87799.0,0.00017086]
[1767087448094,0.0114026,87811.0,87792.0,0.05712]
[1767087449198,0.00017086,87810.0,87793.0,0.00017086]
[1767087453690,0.011403,87809.0,87793.0,0.00017086]
[1767087454299,0.0114038,87802.0,87786.0,0.05712]
[1767087456998,0.0114038,87802.0,87785.0,0.00017086]
[1767087457194,0.09692,87807.0,87776.0,0.05712]
[1767087457395,0.026262,87806.0,87776.0,0.05712]
[1767087457699,0.026262,87805.0,87776.0,0.05712]
[1767087457891,0.026262,87804.0,87776.0,0.05712]
[1767087458095,0.083382,87803.0,87776.0,0.05712]
[1767087458291,0.026262,87802.0,87782.0,0.00017086]
[1767087458500,0.026262,87801.0,87776.0,0.05712]
[1767087458701,0.026262,87800.0,87776.0,0.05712]
[1767087458993,0.026262,87799.0,87776.0,0.05712]
[1767087459191,0.0114045,87797.0,87776.0,0.05712]
[1767087459390,0.0114045,87797.0,87778.0,0.00017086]
[1767087472709,0.05712,87803.0,87778.0,0.00017086]
[1767087472909,0.0114053,87791.0,87766.0,0.0114083]
[1767087473117,0.0114053,87791.0,87767.0,0.15404]
[1767087473512,0.0114053,87791.0,87768.0,0.0114082]
[1767087474017,0.00017086,87788.0,87771.0,0.00017086]
[1767087476617,0.00017086,87788.0,87771.0,0.01157866]
[1767087478621,0.00017086,87788.0,87771.0,0.00017086]
[1767087479120,0.00017086,87788.0,87776.0,0.0114071]
[1767087482720,0.1083237,87803.0,87782.0,0.0114064]
[1767087483123,0.0114039,87801.0,87778.0,0.0114068]
[1767087483424,0.09692,87803.0,87778.0,0.0114068]
[1767087483425,0.0114043,87798.0,87778.0,0.0114068]
[1767087483623,0.09692,87806.0,87781.0,0.0114065]
[1767087483824,0.00017086,87802.0,87781.0,0.0114065]
[1767087484015,0.01157466,87802.0,87781.0,0.0114065]
[1767087484822,0.15438149,87820.0,87777.0,0.15404]
[1767087484823,0.00227745,87818.0,87777.0,0.15404]
[1767087485023,0.03765953,87817.0,87792.0,0.0114051]
[1767087485329,0.02625753,87816.0,87795.0,0.0114046]
[1767087485622,0.02625753,87815.0,87795.0,0.0114046]
[1767087485820,0.00227745,87818.0,87799.0,0.0114042]
[1767087486014,0.00017086,87814.0,87799.0,0.0114042]
[1767087487626,0.00227745,87818.0,87802.0,0.0114037]
[1767087490526,0.00227745,87818.0,87796.0,0.00017086]
[1767087492131,0.00227745,87818.0,87799.0,0.0114041]
[1767087495333,0.00227745,87818.0,87796.0,0.00017086]
[1767087495536,0.00227745,87818.0,87797.0,0.0114044]
[1767087499332,0.00227745,87818.0,87800.0,0.011404]
[1767087499531,0.00227745,87818.0,87801.0,0.154]
[1767087500142,0.00227745,87818.0,87802.0,0.0114038]
[1767087501141,0.00227745,87818.0,87801.0,0.154]
[1767087501643,0.00227745,87818.0,87802.0,0.05708]
[1767087503139,0.00227745,87818.0,87802.0,0.0684838]
[1767087503640,0.00227745,87818.0,87802.0,0.05708]
[1767087504037,0.15437918,87812.0,87802.0,0.05708]
[1767087504237,0.15437918,87812.0,87801.0,0.09692]
[1767087504643,0.02623351,87811.0,87801.0,0.09692]
[1767087504942,0.02623351,87810.0,87799.0,0.05708]
[1767087506747,0.02623351,87809.0,87799.0,0.05708]
[1767087507743,0.02623351,87809.0,87759.0,0.08219674]
[1767087507944,0.15437918,87800.0,87784.0,0.011406]
[1767087508137,0.02623351,87799.0,87785.0,0.05708]
[1767087508336,0.02623351,87798.0,87785.0,0.05708]
[1767087508645,0.0262659,87797.0,87785.0,0.05708]
[1767087508842,0.00017086,87800.0,87785.0,0.05708]
[1767087509042,0.0262662,87799.0,87785.0,0.05708]
[1767087509247,0.0262662,87798.0,87785.0,0.05708]
[1767087509445,0.0262662,87797.0,87785.0,0.05708]
[1767087509750,0.0262662,87796.0,87785.0,0.05708]
[1767087509947,0.00017086,87800.0,87785.0,0.05708]
[1767087510139,0.02627062,87799.0,87785.0,0.05708]
[1767087510339,0.02627062,87798.0,87785.0,0.05708]
[1767087510536,0.02627062,87797.0,87785.0,0.05708]
[1767087510734,0.02627062,87796.0,87785.0,0.05708]
[1767087510947,0.00017086,87800.0,87785.0,0.05708]
[1767087511149,0.02626953,87799.0,87785.0,0.05708]
[1767087511350,0.02626953,87798.0,87785.0,0.05708]
[1767087511649,0.02626953,87797.0,87785.0,0.05708]
[1767087511949,0.15455004,87800.0,87785.0,0.05708]
[1767087511950,0.02626953,87796.0,87785.0,0.05708]
[1767087512142,0.02626953,87795.0,87785.0,0.05708]
[1767087512340,0.15455004,87800.0,87785.0,0.05708]
[1767087512546,0.02627754,87799.0,87785.0,0.05708]
[1767087512746,0.02627754,87798.0,87785.0,0.05708]
[1767087512946,0.02627754,87797.0,87785.0,0.05708]
[1767087513147,0.02627754,87796.0,87785.0,0.05708]
[1767087513349,0.02627754,87795.0,87785.0,0.05708]
[1767087513648,0.15455004,87800.0,87785.0,0.05708]
[1767087513849,0.02627871,87799.0,87785.0,0.05708]
[1767087514050,0.02627871,87798.0,87785.0,0.05708]
[1767087514246,0.02627871,87797.0,87785.0,0.05708]
[1767087514447,0.02627871,87796.0,87785.0,0.05708]
[1767087514654,0.15455004,87800.0,87785.0,0.05708]
[1767087515650,0.00017086,87800.0,87785.0,0.05708]
[1767087516053,0.0114032,87807.0,87790.0,0.15437918]
[1767087516252,0.15437918,87810.0,87791.0,0.05712]
[1767087517146,0.00017086,87809.0,87791.0,0.05712]
[1767087522352,0.011403,87808.0,87791.0,0.05712]
[1767087522556,0.00017086,87809.0,87791.0,0.05712]
[1767087522952,0.0114045,87797.0,87782.0,0.00017086]
[1767087523153,0.0114045,87797.0,87783.0,0.05708]
[1767087525655,0.15437918,87800.0,87783.0,0.05708]
[1767087527759,0.011404,87801.0,87783.0,0.05708]
[1767087527962,0.15437918,87800.0,87783.0,0.05708]
[1767087530160,0.05708,87802.0,87783.0,0.05708]
[1767087530460,0.05708,87803.0,87790.0,0.15437918]
[1767087531260,0.05708,87803.0,87784.0,0.011406]
[1767087532871,0.05708,87803.0,87783.0,0.05708]
[1767087533365,0.0684833,87806.0,87785.0,0.011406]
[1767087538072,0.05708,87806.0,87788.0,0.0114056]
[1767087538362,0.05708,87806.0,87789.0,0.05708]
[1767087540370,0.05708,87806.0,87790.0,0.15437918]
[1767087540870,0.05708,87806.0,87789.0,0.05708]
[1767087542668,0.05708,87807.0,87790.0,0.16578448]
[1767087542870,0.02631987,87806.0,87793.0,0.0114049]
[1767087543065,0.00017086,87809.0,87790.0,0.15437918]
[1767087543266,0.02632018,87808.0,87790.0,0.15437918]
[1767087543471,0.02632018,87807.0,87789.0,0.0684854]
[1767087543669,0.00017086,87809.0,87789.0,0.0684854]
[1767087543873,0.02632154,87808.0,87789.0,0.0684854]
[1767087544073,0.02632154,87807.0,87789.0,0.0684854]
[1767087544269,0.00017086,87809.0,87789.0,0.0684854]
[1767087544576,0.02632316,87808.0,87790.0,0.15437918]
[1767087544774,0.02632316,87807.0,87790.0,0.15437918]
[1767087544969,0.02632316,87806.0,87791.0,0.0114052]
[1767087545170,0.02632316,87805.0,87791.0,0.0114052]
[1767087545368,0.02632316,87804.0,87791.0,0.0114052]
[1767087545571,0.00017086,87809.0,87791.0,0.0114052]
[1767087545777,0.02632512,87808.0,87791.0,0.0114052]
[1767087545976,0.02632512,87807.0,87791.0,0.0114052]
[1767087546177,0.02632512,87806.0,87791.0,0.0114052]
[1767087546377,0.02632512,87805.0,87791.0,0.0114052]
[1767087546573,0.02632512,87804.0,87791.0,0.0114052]
[1767087546773,0.00017086,87809.0,87791.0,0.0114052]
[1767087547077,0.02632506,87808.0,87789.0,0.05708]
[1767087547276,0.02632506,87807.0,87789.0,0.05708]
[1767087547475,0.02632506,87806.0,87789.0,0.05708]
[1767087547679,0.02632506,87805.0,87789.0,0.05708]
[1767087547879,0.02632506,87804.0,87789.0,0.05708]
[1767087548178,0.0114033,87806.0,87789.0,0.05708]
[1767087548379,0.02632178,87805.0,87789.0,0.05708]
[1767087548579,0.02632178,87804.0,87789.0,0.05708]
[1767087548877,0.0114033,87806.0,87789.0,0.05708]
[1767087549079,0.02632203,87805.0,87789.0,0.05708]
[1767087549270,0.02632203,87804.0,87789.0,0.05708]
[1767087549468,0.02632257,87803.0,87789.0,0.05708]
[1767087549665,0.0114033,87806.0,87789.0,0.05708]
[1767087549976,0.02632258,87805.0,87789.0,0.05708]
[1767087550177,0.02632258,87804.0,87789.0,0.05708]
[1767087550475,0.02632258,87803.0,87789.0,0.05708]
[1767087550676,0.0114033,87806.0,87789.0,0.05708]
[1767087550881,0.02632341,87805.0,87789.0,0.05708]
[1767087551072,0.02632341,87804.0,87789.0,0.05708]
[1767087551272,0.02632448,87803.0,87789.0,0.05708]
[1767087551473,0.00017086,87809.0,87790.0,0.16578448]
[1767087551673,0.02632536,87808.0,87790.0,0.16578448]
[1767087551978,0.02632536,87807.0,87790.0,0.16578448]
[1767087552184,0.02632536,87806.0,87790.0,0.16578448]
[1767087552377,0.02632536,87805.0,87790.0,0.16578448]
[1767087552579,0.00017086,87809.0,87793.0,0.0114049]
[1767087552781,0.02632629,87808.0,87793.0,0.0114049]
[1767087552980,0.00017086,87809.0,87793.0,0.0114049]
[1767087553481,0.00017086,87809.0,87791.0,0.0114052]
[1767087554072,0.00017086,87809.0,87790.0,0.15437918]
[1767087555182,0.00017086,87809.0,87790.0,0.16578448]
[1767087556185,0.011403,87808.0,87789.0,0.05708]
[1767087557080,0.00017086,87809.0,87789.0,0.0684855]
[1767087557287,0.00017086,87809.0,87790.0,0.15437918]
[1767087557788,0.0114031,87808.0,87790.0,0.15437918]
[1767087558476,0.0114031,87808.0,87789.0,0.05708]
[1767087563391,0.0114037,87804.0,87782.0,0.01157716]
[1767087563595,0.0114037,87804.0,87783.0,0.05708]
[1767087565194,0.0114044,87798.0,87782.0,0.00017086]
[1767087566793,0.068484,87801.0,87782.0,0.00017086]
[1767087568993,0.09692,87803.0,87782.0,0.01157716]
[1767087569201,0.02621828,87802.0,87782.0,0.01157716]
[1767087569395,0.09692,87803.0,87782.0,0.01157716]
[1767087569597,0.0262203,87802.0,87782.0,0.01157716]
[1767087569796,0.09692,87803.0,87782.0,0.01157716]
[1767087569996,0.02622031,87802.0,87782.0,0.01157716]
[1767087570195,0.09692,87803.0,87782.0,0.01157716]
[1767087570393,0.02622027,87802.0,87782.0,0.01157716]
[1767087570592,0.09692,87803.0,87782.0,0.01157716]
[1767087573000,0.0114038,87802.0,87782.0,0.01157716]
[1767087573502,0.0114038,87802.0,87782.0,0.00017086]
[1767087578404,0.0114038,87802.0,87783.0,0.05708]
[1767087580301,0.09692,87803.0,87784.0,0.011406]
[1767087583404,0.09692,87803.0,87787.0,0.0114057]
[1767087584802,0.09692,87803.0,87785.0,0.011406]
[1767087585302,0.1083237,87803.0,87783.0,0.05708]
[1767087586404,0.09692,87803.0,87785.0,0.011406]
[1767087592806,0.1083237,87803.0,87785.0,0.011406]
[1767087593908,0.09692,87803.0,87785.0,0.011406]
[1767087594608,0.02621283,87802.0,87785.0,0.011406]
[1767087594800,0.02621283,87801.0,87785.0,0.011406]
[1767087595000,0.02621283,87800.0,87785.0,0.011406]
[1767087595299,0.02621283,87799.0,87785.0,0.011406]
[1767087595501,0.02621283,87798.0,87785.0,0.011406]
[1767087595700,0.02621283,87797.0,87785.0,0.011406]
[1767087595900,0.09692,87803.0,87785.0,0.011406]
[1767087596100,0.0262134,87802.0,87788.0,0.0114056]